Cogmind - Beta 14 @@@ ROGUE MODE // 2025.03.08 @ 00:14:46 Player: Rudrot Result: Destroyed by 8L-8XB(R) with Subdweller Machine Gun Performance ------------- Evolutions (0) 0 Regions Visited (2) 400 Robots Destroyed (21) 105 Value Destroyed (542) 542 Prototype IDs (4) 80 Alien Tech Used (0) 0 Bonus (0) 0 TOTAL SCORE: 1127 Bonus ------- None Cogmind --------- Core Integrity 0/250 Matter 243/300 Energy 85/100 System Corruption 0% Temperature Cool (6) Movement Rolling (80) Location -10/Subcaves Parts ------- > --- POWER (1) -------- (None) > --- PROPULSION (2) --- Wheel > --- UTILITY (2) ------ Subdweller Optics Targeting Computer > --- WEAPON (2) ------- Barrage Gun Battle Cannon > --- INVENTORY (5) ---- Structural Scanner Barrage Gun Battle Cannon Peak State ------------ > --- POWER ------------ Subdweller Power Source > --- PROPULSION ------- Wheel > --- UTILITY ---------- Subdweller Optics Targeting Computer > --- WEAPON ----------- Subdweller Machine Gun Subdweller Machine Gun > --- INVENTORY -------- Wheel Structural Scanner Barrage Gun Light Cannon [Rating: 10] Favorites ----------- Power Light Ion Engine Engine Light Ion Engine Propulsion Wheel Wheel Wheel Utility Targeting Computer Device Structural Scanner Storage Small Storage Unit Processor Targeting Computer Protection Light Armor Plating Weapon Subdweller Machine Gun Energy Gun EM Pulse Gun Ballistic Gun Subdweller Machine Gun Ballistic Cannon Light Cannon Launcher Grenade Launcher Build | -11 -10 -10 ------- Run | Yrd Mat Sub Slots Evolved . | . . . Power . | . . . Propulsion . | . . . Utility . | . . . Weapon . | . . . Parts Attached 32 | 6 16 10 Power 4 | 1 2 1 Engine 4 | 1 2 1 Core . | . . . Reactor . | . . . Propulsion 9 | 2 5 2 Treads . | . . . Leg . | . . . Wheel 9 | 2 5 2 Hover . | . . . Flight . | . . . Utility 8 | 1 5 2 Device 3 | . 2 1 Storage 1 | 1 . . Processor 2 | . 1 1 Hackware . | . . . Protection 2 | . 2 . Artifact . | . . . Weapon 11 | 2 4 5 Energy Gun 1 | 1 . . Energy Cannon . | . . . Ballistic Gun 5 | 1 1 3 Ballistic Cannon 3 | . 1 2 Launcher 2 | . 2 . Special Weapon . | . . . Impact Weapon . | . . . Slashing Weapon . | . . . Piercing Weapon . | . . . Special Melee Weapon . | . . . Unidentified Prototypes . | . . . Parts Lost 14 | . 8 6 Power 3 | . 2 1 Propulsion 4 | . 2 2 Utility 3 | . 2 1 Weapon 4 | . 2 2 Highest Loss Streak 4 | . 4 4 To Critical Strikes . | . . . Average Slot Usage (%) 89 | . 93 81 Engine 11 | . 12 8 Wheel 23 | . 27 16 Device 11 | . 9 13 Storage 1 | . 1 . Processor 7 | . 5 11 Protection 6 | . 8 1 Energy Gun 2 | . 3 . Ballistic Gun 13 | . 13 13 Ballistic Cannon 8 | . 6 12 Launcher 2 | . 2 1 Peak Build Rating 10 | 6 7 10 Average Rating 7 | 3 6 8 On Entrance 4 | . 6 7 Naked Turns . | . . . Heaviest Build 17 | 14 17 15 Greatest Support 26 | 26 26 20 Greatest Overweight (x) 4 | 4 1 1 Average Overweight (x) . | . . . Largest Inventory Capacity 8 | 8 8 5 Average Capacity 5 | 6 5 5 Most Carried 5 | 2 5 5 Average Carried 3 | 1 3 4 Final Capacity 8 | 8 5 5 Final Carried 4 | . 4 3 Class Distribution -------------------- 65% | Mutant 34% | Scavenger-Mutant Dominant Class ---------------- Scavenger-Mutant | -10/Materials Mutant | -10/Subcaves Resources | -11 -10 -10 ----------- Run | Yrd Mat Sub Matter Collected 908 | 194 406 308 Remotely . | . . . Salvage Created 565 | . 496 69 Parts 36 | . 33 3 Haulers Intercepted . | . . . Recyclers Shooed . | . . . Parts Field Recycled . | . . . Retrieved Matter . | . . . Parts Self-Destructed . | . . . Prevented . | . . . Kills | -11 -10 -10 ------- Run | Yrd Mat Sub Combat Hostiles Destroyed 18 | . 16 2 Guns 11 | . 9 2 Cannons 2 | . 2 . AOE 5 | . 5 . Classes Destroyed 5 | . 4 1 Builder 2 | . 2 . Watcher 1 | . 1 . Swarmer 6 | . 6 . Grunt 10 | . 10 . Subdweller 2 | . . 2 Best Kill Streak 7 | . 7 2 Combat Bots Only 5 | . 5 2 Max Kills in Single Turn 3 | . 3 1 Gunslinging 1 | . 1 . Exploded 3 | . 3 . Melee . | . . . Uniques/NPCs Destroyed . | . . . Combat | -11 -10 -10 -------- Run | Yrd Mat Sub Hostile Shots Fired 108 | . 85 23 Missed 30 | . 22 8 Damage Taken 1197 | . 815 382 Core 263 | . 161 102 Absorbed by Shields . | . . . Core Remaining (%) 100 | 100 . . Volleys Fired 111 | . 99 12 Largest 2 | . 2 2 Hottest 69 | . 65 69 Shots Fired 201 | . 177 24 Gun 137 | . 119 18 Cannon 55 | . 49 6 Launcher 9 | . 9 . Special . | . . . Kinetic 174 | . 150 24 Thermal . | . . . Explosive 9 | . 9 . Electromagnetic 18 | . 18 . Robot Hit Streak 13 | . 13 11 Robot Miss Streak 5 | . 5 2 Penetration Max . | . . . Secondary Targets 1 | . 1 . Max Gunslinging Chain 1 | . 1 . Shots Hit Robots 74 | . 57 17 Core Hits 34 | . 30 4 Critical Kills . | . . . Critical Parts Destroyed . | . . . Critical Strikes . | . . . Melee Attacks . | . . . Impact . | . . . Slashing . | . . . Piercing . | . . . Sneak Attacks . | . . . Combat Hostiles . | . . . Follow-up Attacks . | . . . Damage Inflicted 1416 | . 1064 352 Guns 810 | . 557 253 Cannons 191 | . 92 99 Explosions 405 | . 405 . Melee . | . . . Ramming 10 | . 10 . Kinetic 877 | . 525 352 Thermal 38 | . 38 . Explosive 367 | . 367 . Electromagnetic 124 | . 124 . Impact . | . . . Slashing . | . . . Piercing . | . . . Highest Corruption . | . . . Average Corruption . | . . . Corruption Purged . | . . . Corruption Blocked . | . . . Overload Shots . | . . . Overflow Damage . | . . . Projectiles . | . . . Explosions . | . . . Melee . | . . . Knockbacks 1 | . 1 . Impact . | . . . Kinetic 1 | . 1 . Secondary . | . . . Self-Inflicted Damage 37 | . 37 . Shots 1 | . 1 . Rammed 2 | . 2 . Targets Rammed 2 | . 2 . Kicked . | . . . Crushed . | . . . Highest Temperature 315 | . 315 . Average Temperature 110 | . 110 . Received Heat Transfer 519 | . 441 78 Siege Activations . | . . . Robots Corrupted . | . . . Combat Hostiles . | . . . Parts Fried . | . . . Impact Corruptions . | . . . Robots Melted . | . . . Combat Hostiles . | . . . Parts Melted 1 | . . 1 Heat Transferred 50 | . 50 . Parts Sabotaged . | . . . Parts Stolen . | . . . Parts Stripped . | . . . Power Chain Reactions 1 | . 1 . Alert | -11 -10 -10 ------- Run | Yrd Mat Sub Peak Influence 348 | . 348 . Initial . | . . . Average 128 | . 135 . Maximum Alert Level 1 | . 1 . Low Security (%) 76 | 100 75 . Level 1 23 | . 24 . Level 2 . | . . . Level 3 . | . . . Level 4 . | . . . Level 5 . | . . . High Security . | . . . Max Security . | . . . Squads Dispatched 5 | . 5 . Investigation 2 | . 2 . Extermination . | . . . Reinforcement 3 | . 3 . Assault . | . . . Garrison . | . . . Intercept . | . . . Searches Triggered . | . . . Construction Impeded . | . . . Haulers Reinforced . | . . . Active Scanning Responses . | . . . Cargo Convoy Interrupts . | . . . Stealth | -11 -10 -10 --------- Run | Yrd Mat Sub Distress Signals 1 | . 1 . Communications Jammed . | . . . Distress Signals . | . . . Times Spotted 31 | . 27 4 Peak Tracking Total 7 | . 7 2 Tactical Retreats 1 | . 1 . Traps | -11 -10 -10 ------- Run | Yrd Mat Sub Traps Triggered 3 | . 2 1 Indirectly . | . . . Trap Hack Attempts . | . . . Triggered . | . . . Disarmed . | . . . Reprogrammed . | . . . Reused . | . . . Traps Extracted . | . . . Installed . | . . . Triggered . | . . . Machines | -11 -10 -10 ---------- Run | Yrd Mat Sub Machines Disabled 1 | . 1 . Max in Single Turn 1 | . 1 . Machines Repaired . | . . . Machines Dismantled . | . . . Machines Sabotaged . | . . . Overloaded Fab Kills . | . . . Hacking | -11 -10 -10 --------- Run | Yrd Mat Sub Machines Accessed 5 | . 5 . Terminals 5 | . 5 . Fabricators . | . . . Repair Stations . | . . . Recycling Units . | . . . Scanalyzers . | . . . Garrison Access . | . . . Total Hacks 14 | . 14 . Successful 7 | . 7 . Failed 7 | . 7 . Catastrophic 1 | . 1 . Database Lockouts . | . . . Manual . | . . . Terminals 14 | . 14 . Fabricators . | . . . Repair Stations . | . . . Recycling Units . | . . . Scanalyzers . | . . . Garrison Access . | . . . Terminal Hacks 7 | . 7 . Prototype ID Bank 2 | . 2 . Emergency Access Points 1 | . 1 . Alert Level 2 | . 2 . Dispatch Records 1 | . 1 . Hauler Manifests 1 | . 1 . Fabricator Hacks . | . . . Repair Station Hacks . | . . . Recycling Unit Hacks . | . . . Scanalyzer . | . . . Garrison Access Hacks . | . . . Unauthorized Hacks . | . . . Terminals . | . . . Fabricators . | . . . Repair Stations . | . . . Recycling Units . | . . . Scanalyzers . | . . . Garrison Access . | . . . Data Cores Recovered . | . . . Used . | . . . Hacking Detections 5 | . 5 . Full Trace Events 2 | . 2 . Feedback Events . | . . . Feedback Blocked . | . . . Robot Schematics Acquired . | . . . Robots Built . | . . . Authchips . | . . . Time . | . . . Total Robot Build Rating . | . . . Part Schematics Acquired . | . . . Parts Built . | . . . Authchips . | . . . Time . | . . . Total Part Build Rating . | . . . Parts Repaired . | . . . Time . | . . . Parts Recycled . | . . . Recycled Matter . | . . . Retrieved Matter . | . . . Retrieved Components . | . . . Parts Scanalyzed . | . . . Part Schematics Acquired . | . . . Parts Damaged . | . . . Bothacking | -11 -10 -10 ------------ Run | Yrd Mat Sub Used RIF Installer . | . . . Robots Hacked . | . . . Non-combat . | . . . Combat . | . . . Robot Hacks Applied . | . . . Relay Couplers Released . | . . . Fabnet Peak Effective % . | . . . Robots Rewired . | . . . Allies Hacked . | . . . Hacks Repelled . | . . . Allies | -11 -10 -10 -------- Run | Yrd Mat Sub Total Allies . | . . . Largest Group . | . . . Highest-Rated Group . | . . . Highest-Rated Ally . | . . . Total Orders . | . . . Ally Attacks . | . . . Total Damage . | . . . Kills . | . . . Allies Corrupted . | . . . Allies Melted . | . . . Intel | -11 -10 -10 ------- Run | Yrd Mat Sub Robot Analysis Total . | . . . Derelict Logs Recovered 1 | . . 1 Drone Launches . | . . . Drone Recoveries . | . . . Exploration | -11 -10 -10 ------------- Run | Yrd Mat Sub Turns Passed 1396 | 48 845 503 Spaces Moved 1201 | 44 648 509 Core 24 | 24 . . Treads . | . . . Legs . | . . . Wheels 1177 | 20 648 509 Hover . | . . . Flight . | . . . Fastest Speed 50 | 50 80 80 Average Speed 85 | 86 83 87 Slowest Speed 250 | 250 95 95 Overloaded Moves . | . . . Propulsion Burnouts . | . . . Robots Hopped . | . . . Cave-ins Triggered . | . . . Exploration Rate (%) 36 | 4 84 21 Regions Visited 2 Branch Regions 1 Pre-discovered Areas 1 | . . 1 Known Exits Taken . | . . . Unknown Exits Taken 2 | 1 1 . Scrap Searched 5 | . . 5 Spaces Dug 7 | . 7 . Terrain Destroyed 49 | . 49 . Melee . | . . . Projectile . | . . . AOE 49 | . 49 . Terrain Rammed . | . . . Walls Destroyed . | . . . Machines Disabled . | . . . Actions | -11 -10 -10 --------- Run | Yrd Mat Sub Total 1381 | 51 786 544 Wait 12 | . 10 2 Move 1199 | 43 647 509 Hop . | . . . Pick Up 12 | 2 7 3 Fast Attach 15 | 4 7 4 Attach 9 | 2 3 4 Detach 3 | . 1 2 Swap 8 | . 6 2 Drop 9 | . 4 5 Fire 111 | . 99 12 Melee . | . . . Ram 2 | . 2 . Kick . | . . . Crush . | . . . Escape Stasis . | . . . Rewire 1 | . . 1 Trap . | . . . Miscellaneous . | . . . Route ------- -11/Scrapyard -10/Materials (discovered 5 exits: [*Mat x2] / [*Min x2] / [*Sub]) -10/Subcaves History --------- Turn | Location | Event 9 | -11/Scrapyard | Discovered new exit (range 16) 49 | -11/Scrapyard | Entered Materials 108 | -10/Materials | Discovered new exit (range 15) 316 | -10/Materials | Lost 3 parts (1p1u1w) 374 | -10/Materials | Discovered new exit (range 16) 460 | -10/Materials | Core integrity fell below 50% 501 | -10/Materials | Lost 4 parts (1p1n1u1w) 520 | -10/Materials | Discovered new exit (range 15) 777 | -10/Materials | Build established: Scavenger-Mutant 852 | -10/Materials | Discovered new exit (range 15) 860 | -10/Materials | Discovered new exit (range 9) 894 | -10/Materials | Entered Subcaves 923 | -10/Subcaves | Learned location of Storage (-8) 1013 | -10/Subcaves | Lost 4 parts (1p1n1u1w) 1113 | -10/Subcaves | Build established: Mutant 1178 | -10/Subcaves | A swath of the cavern ceiling suddenly collapsed 1296 | -10/Subcaves | Shifting Twisted Machinery released Battle Cannon 1391 | -10/Subcaves | Core integrity fell below 20% 1397 | -10/Subcaves | Destroyed by 8L-8XB(R) with Subdweller Machine Gun Last Messages --------------- 01016_ Dropped Sub. Machine Gun. 01016_ Acquired Battle Cannon. 01018_ Acquired 10 matter. 01046_ LB-28B(O) collects matter. A swath of the cavern ceiling suddenly collapses. 01214_ Acquired 6 matter. 01217_ Acquired 1 matter. 01240_ Sub. Power Source shoots sparks and powers down. 01246_ Dropped Broken Sub. Power Source. 01275_ Attempting to rewire UM-EPT(R). 01275_ UM-EPT(R) is broken beyond repair. Battle Cannon falls loose from the Twisted Machinery. 01301_ Dropped Lgt. Cannon. 01386_ Wheel destroyed. 01392_ Sub. Machine Gun destroyed. 01394_ Sub. Optics shoots sparks and powers down. Map ----- +----------------------------------------------------+ | ?????????????????????????????????????????????????? | | ?????????????????????????????????????????????????? | | ?????????????????????????????????????????????????? | | ?????????????????????????????????????????????????? | | ??????????????????????#??????????????????????????? | | ????????????????????? #?????????????????????????? | | ???????????????????? ##???????????????????????? | | ???????????????????? ###????????????????????? | | ????????????????????? ????????????????????? | | ?????????????????????? % ????????????????????? | | ??????????????????????? ????????????????????? | | ???????????????????????? #????????????????????? | | ?????????????????????????# R##?###???????????????? | | ???????????????????????### #?# ####????????????? | | ???????????????????????# R ### ###??????????? | | ???????????????????????# ## #??????????? | | ????????????????????????# ##?????????? | | ?????????????????????????# ##????????? | | ?????????????????????????# ##???????? | | ????????????????????????## ##??????? | | ???????????????????????## #??????? | | ???????????????????????# #??????? | | ???????????????????????# ### ###??????? | | ????????????????????#### #?#### ## #####????? | | ???????????????????## #????###### ## ##???? | | ?????????????????### @ #?????????## #???? | | ?????????????????# #??????????# #???? | | ?????????????????# #??????????# ##???? | | ?????????????????# ##?????????## #????? | | ?????????????????# ####??????# ###??? | | ?????????????##### ##?????### ##?? | | ????????????## "#??????## #?? | | ????????????# ## # # ""##????# ##? | | ????????????## ## #####"""#??### ## | | ?????????????## ### ##??#""#### ## | | ??????????????## #### #??# | | ???????????????# #?# #??# ] | | ???????????????####?## ##??## ## ##" ### | | ?????????????????????## ##????########" ## ##? | | ??????????????????????####????????????## ### #? | | ???????????????????????????????????????##### ##? | | ???????????????????????????????????????????# ## | | ??????????????????????????????????????????## | | ??????????????????????????????????????????# | | ??????????????????????????????????????????## | | ???????????????????????????????????????????## | | ????????????????????????????????????????????## | | ?????????????????????????????????????????????# | | ?????????????????????????????????????????????# & | | ?????????????????????????????????????????????##### | +----------------------------------------------------+ Best States ------------- Heat Dissipation 25 Energy Generation 15 Energy Capacity 250 Matter Stores 300 Matter Capacity 300 Sight Range 21 Terrain Scan Density 10 Armor Coverage 150 Evasion (%) 50 Targeting Accuracy 5 Item Schematics ----------------- None Robot Schematics ------------------ None Fabricated ------------ Nothing Alien Tech Used ----------------- None Achievements -------------- None Challenges ------------ None Game ------ Seed GravitonSurveybotStabilizer Manual? 0 Play Time 00:29:04 Cumulative 13.0 hours Start 2025.03.07 @ 23:29:53 End 2025.03.08 @ 00:14:46 Sessions 1 Manual Loads 0 Difficulty Rogue Special Mode None Game No. 8 Rogue 8 Adventurer 0 Explorer 0 Win Type - Total 0 Types 0/0/0/0/0/0/0/0/0 Lore% 4 Gallery% 9 Achievement% 12 Wizard Run 0 Options --------- Layout 1 ASCII 0 Keyboard 1 Movement Numpad Keybinds 0 Fullscreen 1 Font 24/Cog Map View 50x35 Zoom Use 0% Tactical HUD 1 Map Filters NONE Filters NONE Steam 1 RUN: 9cb2ab43-777b-4966-9978-317ac659355f